bitfinex-derivatives/quotes_ETHF0:USTF0_20250702
["timestamp","ask_amount","ask_price","bid_price","bid_amount"]
[1751417229030,2.23346,2399.4,2399.1,0.83345]
[1751417229226,2.23346,2399.4,2399.0,2.21437]
[1751417229533,2.23347,2399.4,2399.0,2.21437]
[1751417230436,72.5003,2399.9,2399.2,0.8334]
[1751417230640,0.8333,2399.6,2399.2,0.8334]
[1751417230941,1.3971,2399.8,2399.2,0.8334]
[1751417231142,0.8333,2399.6,2399.3,0.83338]
[1751417231835,0.83332,2399.5,2399.1,0.83343]
[1751417232235,0.83332,2399.5,2399.2,0.83342]
[1751417232441,0.8333,2399.6,2399.2,0.83342]
[1751417232635,0.8333,2399.6,2399.3,0.83338]
[1751417232937,1.3437,2399.6,2399.0,3.46461]
[1751417233143,0.83324,2399.8,2399.1,1.3306]
[1751417233348,1.3437,2399.8,2399.1,6.78071437]
[1751417233539,2.17692,2399.8,2399.5,0.8333]
[1751417233845,1.3437,2399.8,2399.1,6.78071437]
[1751417234036,0.83318,2399.9,2399.6,0.83326]
[1751417234238,2.0524,2400.1,2399.1,6.78071437]
[1751417234438,0.83323,2399.8,2399.1,1.3306]
[1751417234739,0.83325,2399.7,2399.4,0.83333]
[1751417235044,0.83323,2399.8,2399.5,0.83331]
[1751417235237,5.51814169,2399.9,2399.6,0.83328]
[1751417235735,4.68494169,2399.9,2399.7,0.83323]
[1751417236046,4.68494169,2399.9,2399.4,5.3544403]
[1751417236239,6.90913169,2399.9,2399.6,0.83326]
[1751417237047,0.83317,2400.0,2399.7,0.83324]
[1751417237239,0.6614,2400.1,2399.5,0.6651]
[1751417237440,0.83321,2399.8,2399.5,0.6651]
[1751417237644,0.83321,2399.8,2399.5,1.49841]
[1751417238039,0.83325,2399.7,2399.5,1.49841]
[1751417238345,0.83325,2399.7,2399.5,0.6651]
[1751417238943,0.83328,2399.6,2399.5,0.6651]
[1751417239846,0.83327,2399.7,2399.5,0.6651]
[1751417240037,6.02644169,2399.9,2399.5,0.6651]
[1751417240237,1.3415,2399.9,2399.5,0.6651]
[1751417240440,2.1747,2399.9,2399.6,0.83327]
[1751417240844,1.3415,2399.9,2399.6,0.83327]
[1751417241049,2.17469,2399.9,2399.6,0.83327]
[1751417241252,2.17469,2399.9,2399.7,0.83324]
[1751417241950,1.3415,2399.9,2399.6,0.83326]
[1751417242251,2.17469,2399.9,2399.6,0.83326]
[1751417242441,5.34634169,2400.1,2399.8,0.8332]
[1751417242658,5.80012332,2402.0,2399.5,0.6651]
[1751417242659,1.3986,2400.5,2400.2,0.83305]
[1751417242947,1.3986,2400.5,2399.7,5.53574678]
[1751417242948,0.83292,2400.7,2400.4,0.833]
[1751417243149,0.83284,2400.9,2400.6,0.83291]
[1751417243544,0.83284,2400.9,2400.5,0.83295]
[1751417243744,0.83286,2400.8,2400.5,0.83295]
[1751417245042,0.83285,2400.9,2400.6,0.83293]
[1751417245250,4.68494169,2401.0,2400.3,2.0711]
[1751417245453,0.8329,2400.7,2400.4,0.83298]
[1751417245950,0.83293,2400.6,2400.3,1.55952]
[1751417246150,4.68494169,2400.7,2400.3,0.7265]
[1751417246448,0.833,2400.4,2400.3,0.7265]
[1751417246759,0.83308,2400.2,2399.9,0.83316]
[1751417247055,0.83312,2400.1,2399.8,1.5574]
[1751417247443,0.83317,2400.0,2399.8,0.7242]
[1751417247655,4.68494169,2400.1,2399.8,0.7242]
[1751417247855,0.83318,2399.9,2399.8,0.7242]
[1751417248351,2.15546,2400.0,2399.8,0.7242]
[1751417248551,0.83309,2400.2,2399.9,0.83316]
[1751417249248,8.22119169,2400.3,2400.0,0.83314]
[1751417249449,0.83308,2400.2,2399.9,0.83316]
[1751417249748,0.83302,2400.4,2400.1,0.8331]
[1751417249948,0.83298,2400.5,2400.2,0.83307]
[1751417250450,0.83301,2400.4,2400.1,0.83309]
[1751417250859,0.83301,2400.4,2400.0,0.83312]
[1751417251655,0.83301,2400.4,2400.1,0.83311]
[1751417251851,0.83306,2400.3,2400.0,0.83313]
[1751417252049,0.83307,2400.2,2399.9,0.83315]
[1751417252249,0.83312,2400.1,2399.8,1.55739]
[1751417252856,0.83309,2400.2,2399.9,0.83317]
[1751417253052,2.20709,2400.2,2399.9,0.83317]
[1751417254058,0.83311,2400.1,2399.8,1.55739]
[1751417254261,2.20709,2400.2,2399.9,0.83316]
[1751417254763,2.20709,2400.2,2400.0,0.83314]
[1751417255060,2.20709,2400.2,2399.9,0.83316]
[1751417255260,1.374,2400.2,2400.0,0.83313]
[1751417255552,2.20708,2400.2,2399.9,0.83315]
[1751417256460,0.83313,2400.1,2399.8,1.553]
[1751417256654,2.27233,2400.1,2399.8,1.553]
[1751417256858,1.4392,2400.1,2399.9,0.83317]
[1751417257159,2.27231,2400.1,2399.8,1.55299]
[1751417257457,2.27231,2400.1,2399.8,0.83319]
[1751417257658,1.4392,2400.1,2399.9,0.83317]
[1751417258156,1.55916,2400.3,2399.7,0.6708]
[1751417258362,1.55916,2400.3,2400.0,0.83312]
[1751417258658,1.358,2400.3,2400.1,0.83311]
[1751417259060,2.19104,2400.3,2400.1,0.83311]
[1751417259263,2.19104,2400.3,2399.9,0.7291]
[1751417259764,1.358,2400.3,2400.1,0.83309]
[1751417260654,2.19104,2400.3,2400.1,0.83309]
[1751417260856,1.358,2400.3,2400.1,0.83309]
[1751417261257,2.19104,2400.3,2400.0,0.83311]
[1751417263069,2.19104,2400.3,2400.1,0.83309]
[1751417263564,2.19104,2400.3,2400.0,0.83311]
[1751417264271,2.19104,2400.3,2400.1,0.8331]
[1751417264863,1.358,2400.3,2400.1,0.8331]
[1751417265171,2.19104,2400.3,2400.1,0.8331]
[1751417265970,1.358,2400.3,2400.1,0.8331]
[1751417266465,1.51012,2400.4,2400.1,0.8331]
[1751417266667,2.88862,2400.4,2400.1,0.8331]
[1751417267271,2.21151,2400.4,2400.2,0.83306]
[1751417267470,2.21151,2400.4,2400.1,0.83308]
[1751417267665,1.3785,2400.4,2400.0,0.83312]
[1751417267866,0.83306,2400.3,2400.0,0.83312]
[1751417268570,0.83306,2400.3,2400.1,0.8331]
[1751417269074,3.46104,2400.4,2399.9,0.7291]
[1751417269466,0.83314,2400.1,2399.9,0.7291]
[1751417269671,0.83314,2400.0,2399.9,0.7291]
[1751417270476,1.3612,2400.2,2399.7,1.50403]
[1751417270477,0.83321,2399.8,2399.7,0.6708]
[1751417271376,2.08286,2400.0,2399.3,8.24753386]
[1751417271666,1.4317,2399.7,2399.3,8.24753386]
[1751417271868,1.4317,2399.7,2399.3,49.04753386]
[1751417271869,0.83333,2399.5,2399.3,49.04753386]
[1751417272069,0.83333,2399.5,2399.3,40.8]
[1751417272470,0.83335,2399.4,2399.3,40.8]
[1751417272873,0.83332,2399.5,2399.3,40.8]
[1751417273875,0.83335,2399.4,2399.3,40.8]
[1751417274177,0.83338,2399.3,2399.2,8.94033386]
[1751417275272,0.83338,2399.3,2399.2,8.24753386]
[1751417276075,0.83345,2399.1,2399.0,8.24753386]
[1751417276876,0.83355,2398.8,2398.7,0.6697]
[1751417277269,0.83355,2398.8,2398.7,1.50329]
[1751417277464,0.83355,2398.8,2398.7,0.6697]
[1751417277971,0.83359,2398.7,2398.6,0.6671]
[1751417278274,0.83362,2398.6,2398.5,8.24753386]
[1751417278477,0.83369,2398.4,2398.3,0.6751]
[1751417279071,1.4252,2398.6,2398.3,0.6751]
[1751417279373,5.40934169,2398.9,2398.3,0.6751]
[1751417279574,16.70194169,2399.1,2398.3,0.6751]
[1751417279873,0.83359,2398.7,2398.4,1.3576]
[1751417280065,0.83359,2398.7,2398.5,0.7156]
[1751417280568,0.83358,2398.8,2398.5,0.7156]
[1751417280968,1.3291,2399.0,2398.5,0.7156]
[1751417281475,0.83362,2398.6,2398.5,0.7156]
[1751417282574,2.08385,2398.9,2398.3,0.6751]
[1751417282771,0.83369,2398.4,2398.3,0.6751]
[1751417284068,4.68494169,2398.7,2398.3,0.6751]
[1751417284275,0.83369,2398.4,2398.3,0.6751]
[1751417284677,0.83368,2398.5,2398.3,0.6751]
[1751417284876,0.6726,2398.9,2398.3,0.6751]
[1751417285174,0.83368,2398.5,2398.2,1.52185]
[1751417285377,0.83368,2398.5,2398.3,0.6671]
[1751417285576,0.83364,2398.6,2398.3,1.50082]
[1751417285772,0.83364,2398.6,2398.3,2.85172]
[1751417286768,1.366,2398.8,2398.3,2.018]
[1751417286973,0.83366,2398.5,2398.3,2.018]
[1751417287173,0.83369,2398.4,2398.3,2.018]
[1751417287369,1.366,2398.8,2398.3,1.50082]
[1751417287578,0.8336,2398.7,2398.3,1.50082]
[1751417288181,0.83365,2398.6,2398.3,0.6671]
[1751417289068,0.83361,2398.7,2398.3,0.6671]
[1751417289272,0.83363,2398.6,2398.3,0.6671]
[1751417289471,0.83363,2398.6,2398.3,0.83372]
[1751417289973,0.83361,2398.7,2398.4,0.83369]
[1751417290280,2.19957,2398.8,2398.5,0.83366]
[1751417290478,2.08329,2399.5,2398.2,4.1696]
[1751417290679,0.83353,2398.9,2398.6,0.8336]
[1751417291481,4.68494169,2399.1,2398.3,5.31079158]
[1751417291683,1.406,2398.8,2398.7,0.83359]
[1751417291880,0.6659,2399.0,2398.7,0.83359]
[1751417291881,1.4994,2399.0,2398.7,0.83359]
[1751417292181,1.49939,2399.0,2398.7,0.83356]
[1751417292373,0.83352,2398.9,2398.6,0.8336]
[1751417292680,0.83353,2398.9,2398.7,0.83358]
[1751417292881,0.83353,2398.9,2398.6,0.83361]
[1751417293183,0.83353,2398.9,2398.7,0.83358]
[1751417293478,2.0719,2399.0,2398.2,0.6881]
[1751417293676,0.83359,2398.7,2398.4,0.83366]
[1751417294682,2.23957,2398.8,2398.5,0.83364]
[1751417294884,0.83359,2398.7,2398.5,0.83364]
[1751417295073,2.23958,2398.8,2398.5,0.83364]
[1751417295682,1.406,2398.8,2398.3,2.08429]
[1751417295985,0.83352,2398.9,2398.6,0.8336]
[1751417296286,0.83352,2398.9,2398.7,0.6755]
[1751417296486,2.2932,2399.0,2398.7,1.50907]
[1751417296888,1.4597,2399.0,2398.9,0.83352]
[1751417297189,0.8335,2399.0,2398.7,1.50907]
[1751417297585,1.4597,2399.2,2398.7,0.6755]
[1751417297586,0.83352,2398.9,2398.7,0.6755]
[1751417297789,0.83361,2398.7,2398.4,0.83368]
[1751417298086,0.83368,2398.5,2398.3,0.6758]
[1751417299192,0.83369,2398.4,2398.3,0.6758]
[1751417299389,0.83368,2398.5,2398.3,0.6758]
[1751417299986,0.83368,2398.5,2398.3,1.50952]
[1751417300187,0.83368,2398.5,2398.3,0.6758]
[1751417301489,0.83368,2398.5,2398.3,1.50953]
[1751417301788,2.19614,2398.6,2398.3,1.50953]
[1751417302479,0.83366,2398.5,2398.3,1.50953]
[1751417302684,0.83366,2398.5,2398.3,0.6758]
[1751417302879,0.83369,2398.4,2398.3,0.6758]
[1751417303190,2.08435,2398.3,2397.7,8.17553386]
[1751417303490,0.83389,2397.9,2397.4,1.49491]
[1751417303689,1.3211,2397.8,2397.4,0.6609]
[1751417303890,12.7433,2398.2,2397.4,6.3575251]
[1751417304090,0.83384,2398.0,2397.6,0.83396]
[1751417304288,1.3998,2398.1,2397.4,6.3575251]
[1751417304487,0.83388,2397.9,2397.5,0.834]
[1751417304687,18.10074169,2398.1,2397.4,6.01880598]
[1751417304890,1.3998,2397.8,2397.4,6.85284598]
[1751417305089,0.83396,2397.7,2397.4,0.6609]
[1751417305292,0.83401,2397.5,2397.4,0.6609]
[1751417305491,0.83399,2397.6,2397.4,0.6609]
[1751417305981,0.7272,2397.9,2397.4,0.6609]
[1751417306184,0.83392,2397.8,2397.4,1.49493]
[1751417306385,2.23372,2397.8,2397.4,0.6609]
[1751417306587,2.23372,2397.8,2397.4,1.49494]
[1751417306886,1.3998,2397.8,2397.4,0.6609]
[1751417307090,0.83387,2397.9,2397.5,0.83398]
[1751417307292,1.4122,2398.0,2397.1,0.40416071]
[1751417307593,0.83395,2397.7,2397.3,1.51246]
[1751417307893,1.4122,2397.6,2397.3,1.51246]
[1751417308288,1.4122,2397.6,2397.3,0.6784]
[1751417308488,2.24619,2397.6,2397.3,0.6784]
[1751417308692,1.4122,2397.6,2397.3,0.6784]
[1751417308892,0.83386,2398.0,2397.5,0.83401]
[1751417309192,0.83387,2397.9,2397.5,0.83401]
[1751417309396,1.4122,2398.0,2397.6,0.83396]
[1751417309397,2.24605,2398.0,2397.6,0.83396]
[1751417309594,1.4122,2398.0,2397.7,0.7104]
[1751417309788,0.7273,2398.2,2397.9,0.83387]
[1751417310192,0.83385,2398.0,2397.6,0.83395]
[1751417310497,1.3371,2397.9,2397.6,6.20130897]
[1751417310898,1.3371,2397.9,2397.7,0.83393]
[1751417311100,1.3371,2397.9,2397.6,1.54435]
[1751417311404,1.3371,2397.9,2397.7,0.83394]
[1751417311595,1.3371,2397.9,2397.8,0.8339]
[1751417311795,1.3371,2397.9,2397.7,0.83392]
[1751417311996,0.7273,2398.2,2397.9,0.83385]
[1751417312397,2.89816,2398.2,2398.0,0.6681]
[1751417312900,2.0644,2398.2,2398.0,0.6681]
[1751417313102,2.17087,2398.2,2398.0,0.6681]
[1751417314504,1.3371,2398.2,2398.0,0.6681]
[1751417314898,1.3371,2398.2,2398.0,1.50192]
[1751417315202,0.83353,2398.9,2398.6,0.83361]
[1751417315403,2.19953,2398.9,2398.6,0.83361]
[1751417316103,1.366,2398.9,2398.5,0.83364]
[1751417316399,2.19954,2398.9,2398.3,40.8]
[1751417316602,2.19954,2398.9,2398.6,0.83362]
[1751417317395,2.19954,2398.9,2398.7,0.83359]
[1751417317396,1.366,2398.9,2398.7,0.83359]
[1751417317602,1.366,2398.9,2398.5,0.6828]
[1751417317804,1.366,2398.9,2398.7,0.83357]
[1751417318204,1.366,2398.9,2398.7,0.83358]
[1751417318906,1.366,2398.9,2398.8,0.83355]
[1751417319204,12.85149,2399.0,2398.7,0.83357]
[1751417319406,12.018,2399.0,2398.7,0.83357]
[1751417319604,2.22157,2399.1,2398.8,0.83355]
[1751417319907,1.3881,2399.1,2398.9,0.83351]
[1751417320408,0.3881,2399.1,2398.8,0.83353]
[1751417320605,0.3881,2399.1,2398.9,0.83351]
[1751417320900,0.6832,2399.2,2399.0,0.83348]
[1751417321700,1.51663,2399.2,2398.7,5.53698473]
[1751417321913,0.83343,2399.2,2398.8,0.83353]
[1751417322105,1.4041,2399.7,2399.2,0.8334]
[1751417322409,0.8333,2399.6,2399.3,0.83338]
[1751417322609,0.83332,2399.5,2399.2,0.83339]
[1751417323110,4.68494169,2399.6,2398.9,6.07008505]
[1751417323304,0.83338,2399.4,2399.1,0.83344]
[1751417323609,2.18093,2399.5,2399.1,0.83344]
[1751417324304,0.83335,2399.4,2399.1,0.83344]
[1751417324505,1.3476,2399.4,2399.1,0.83344]
[1751417324709,1.3476,2399.4,2398.9,6.07008505]
[1751417324710,1.3476,2399.4,2399.2,0.83341]
[1751417325012,1.4041,2399.7,2399.0,2.08372]
[1751417325210,0.83325,2399.7,2399.4,0.83333]
[1751417325410,0.83332,2399.5,2399.2,0.8334]
[1751417326206,0.83332,2399.5,2399.3,0.7165]
[1751417326609,0.8333,2399.6,2399.3,0.7165]
[1751417327112,0.8333,2399.6,2399.3,1.54986]
[1751417327499,0.83331,2399.5,2399.3,0.7165]
[1751417327704,0.83329,2399.6,2399.3,1.54988]
[1751417328209,2.25097,2399.7,2399.4,0.83334]
[1751417328612,0.83332,2399.5,2399.3,0.7165]
[1751417328909,1.4177,2399.7,2398.6,14.10103]
[1751417328910,2.7835,2399.7,2398.6,14.10103]
[1751417329108,2.21096,2399.4,2399.1,0.83343]
[1751417329513,2.21096,2399.4,2399.0,0.83346]
[1751417329718,0.83342,2399.2,2398.8,0.6661]
[1751417330006,2.21108,2399.1,2398.8,1.84379558]
[1751417330211,2.21107,2399.1,2398.3,60.007]
[1751417330407,0.83353,2398.9,2398.6,0.83361]
[1751417332207,0.83356,2398.8,2398.5,0.83365]
[1751417332613,0.83354,2398.9,2398.5,0.83365]
[1751417332912,0.83354,2398.9,2398.6,0.83362]
[1751417333112,0.83351,2399.0,2398.6,0.83362]
[1751417333312,2.15382,2398.9,2398.6,0.83362]
[1751417333513,1.3203,2398.9,2398.4,42.1946]
[1751417333717,1.3203,2398.9,2398.7,0.83357]
[1751417334010,1.3203,2398.9,2398.6,0.8336]
[1751417334210,2.15382,2398.9,2398.6,0.8336]
[1751417334511,2.15382,2398.9,2398.5,0.83365]
[1751417334915,0.83357,2398.8,2398.5,0.83365]
[1751417335114,1.3203,2398.9,2398.4,44.44587]
[1751417335307,0.83357,2398.8,2398.5,0.83365]
[1751417335508,2.15385,2398.9,2398.5,0.83365]
[1751417335711,0.83356,2398.8,2398.5,0.83364]
[1751417336615,0.83356,2398.8,2398.4,2.55758772]
[1751417336813,0.83356,2398.8,2398.5,0.83366]
[1751417337515,1.3203,2398.9,2398.4,0.7017]
[1751417337815,0.83363,2398.6,2398.4,1.03529326]
[1751417338009,0.83363,2398.6,2398.4,41.83529326]
[1751417338411,0.83363,2398.6,2398.4,1.03529326]
[1751417339518,0.83363,2398.6,2398.4,0.7017]
[1751417339716,0.83366,2398.5,2398.4,0.7017]
[1751417340018,4.07885,2398.9,2398.4,0.7017]
[1751417340019,6.52495836,2398.9,2398.4,0.7017]
[1751417340218,0.83366,2398.5,2398.4,0.7017]
[1751417342418,0.83364,2398.6,2398.4,0.7017]
[1751417343020,0.83366,2398.5,2398.4,0.7017]
[1751417343318,4.44110836,2398.9,2398.4,0.7017]
[1751417343319,0.83364,2398.6,2398.4,0.7017]
[1751417343521,0.83354,2398.9,2398.5,2.44610836]
[1751417343709,0.83354,2398.9,2398.7,2.44610836]
[1751417343913,0.83354,2398.9,2398.8,0.7119]
[1751417345222,0.83362,2398.6,2398.5,3.13230836]
[1751417345423,0.83362,2398.6,2398.5,1.3745]
[1751417348228,0.8336,2398.7,2398.5,1.3745]
[1751417350925,0.83345,2399.1,2398.9,0.6808]
[1751417351424,0.83348,2399.0,2398.9,0.6808]
[1751417351923,0.83358,2398.8,2398.5,28.39810836]
[1751417352223,0.83359,2398.7,2398.6,0.6864]
[1751417352419,2.21189,2398.7,2398.6,0.6864]
[1751417353825,0.83359,2398.7,2398.6,0.6864]
[1751417354020,0.83354,2398.9,2398.6,0.6864]
[1751417354221,0.83367,2398.5,2398.2,41.97537562]
[1751417354417,0.83367,2398.5,2398.2,41.14162562]
[1751417354619,0.83367,2398.5,2398.3,6.18900393]
[1751417355125,0.83368,2398.5,2398.3,6.18900393]
[1751417356528,0.83369,2398.4,2398.3,6.18900393]
[1751417356730,1.3783,2398.7,2398.2,0.34162562]
[1751417356928,1.3783,2398.7,2398.3,0.7274]
[1751417357226,0.83369,2398.4,2398.3,41.5274]
[1751417357527,1.3783,2398.7,2398.3,0.7274]
[1751417358223,0.83369,2398.5,2398.3,0.7274]
[1751417359826,0.83364,2398.6,2398.3,1.56112]
[1751417360125,2.08357,2399.2,2398.4,6.18498108]
[1751417360427,1.3628,2399.1,2398.4,7.53558108]
[1751417360627,0.83357,2398.8,2398.4,7.53558108]
[1751417360827,1.3628,2399.1,2398.4,5.35132108]
[1751417361028,0.8336,2398.7,2398.4,5.35132108]
[1751417361229,0.83363,2398.6,2398.4,5.35132108]
[1751417361429,2.19643,2398.6,2398.4,5.35132108]
[1751417361630,0.83369,2398.4,2398.3,0.7274]
[1751417361824,0.83368,2398.5,2398.3,0.7274]
[1751417362022,0.83369,2398.4,2398.3,0.7274]
[1751417365033,0.83376,2398.2,2398.1,8.96700942]
[1751417365336,0.83376,2398.2,2398.1,9.67300942]
[1751417365536,0.83376,2398.2,2398.1,9.00300942]
[1751417365930,0.83383,2398.0,2397.9,8.29700942]
[1751417366734,0.83387,2397.9,2397.8,9.00300942]
[1751417366933,2.28347,2397.9,2397.8,9.00300942]
[1751417367135,2.28347,2397.9,2397.8,8.29700942]
[1751417367637,0.8339,2397.8,2397.7,0.6769]
[1751417367836,2.2219,2397.8,2397.7,0.6769]
[1751417368837,2.2219,2397.8,2397.7,8.99682357]
[1751417370040,1.388,2397.8,2397.7,8.99682357]
[1751417370340,0.83389,2397.9,2397.7,8.99682357]
[1751417370839,0.83386,2398.0,2397.7,9.83075357]
[1751417371241,0.83387,2397.9,2397.7,0.6769]
[1751417371840,0.83386,2398.0,2397.7,0.6769]
[1751417372241,0.83387,2397.9,2397.7,0.6769]
[1751417372640,0.83386,2398.0,2397.7,0.6769]
[1751417372937,0.8339,2397.8,2397.7,0.6769]
[1751417373536,0.83394,2397.7,2397.6,8.31992357]
[1751417373741,2.17024,2397.7,2397.6,4.10854357]
[1751417373929,7.17024,2397.7,2397.6,3.00051357]
[1751417374134,7.86994,2397.7,2397.6,0.96099357]
[1751417374440,0.83418,2397.0,2396.9,10.72179403]
[1751417375141,0.83422,2396.9,2396.7,0.83428]
[1751417375441,0.83419,2397.0,2396.7,2.27578]
[1751417375939,0.83422,2396.9,2396.7,2.27578]
[1751417376141,0.83422,2396.9,2396.7,1.4415]
[1751417376842,0.83417,2397.1,2396.7,2.27578]
[1751417377039,0.83413,2397.2,2396.7,2.27576]
[1751417377343,0.83419,2397.0,2396.6,0.6734]
[1751417377538,2.08465,2398.0,2396.9,4.6959628]
[1751417377738,0.83396,2397.7,2397.2,4.6959628]
[1751417377937,0.83393,2397.8,2397.3,2.89906]
[1751417378139,0.83393,2397.8,2397.4,1.3529]
[1751417378640,2.7485,2398.0,2397.5,0.6986]
[1751417378942,0.83388,2397.9,2397.5,0.6986]
[1751417379132,0.83388,2397.9,2397.6,1.3529]
[1751417379838,0.83391,2397.8,2397.6,1.3529]
[1751417380036,0.83394,2397.7,2397.6,1.3529]
[1751417380640,0.83396,2397.7,2397.3,0.6619]
[1751417380939,0.83396,2397.7,2397.4,0.6986]
[1751417381142,0.83398,2397.6,2397.4,0.6986]
[1751417381439,0.83398,2397.6,2397.4,2.0745]
[1751417382836,0.83398,2397.6,2397.5,1.3759]
[1751417384440,2.0928,2398.1,2397.5,1.3759]
[1751417384641,0.83388,2397.9,2397.5,1.3759]
[1751417384841,0.83388,2397.9,2397.5,2.2099]
[1751417385041,2.0928,2398.1,2397.5,1.3759]
[1751417385242,1.51732,2398.1,2397.5,1.3759]
[1751417385643,1.51732,2398.1,2397.7,0.83393]
[1751417386241,1.3873,2398.4,2397.5,1.3759]
[1751417386443,0.8338,2398.1,2397.8,0.83388]
[1751417386642,0.8338,2398.1,2397.9,0.7202]
[1751417386839,0.83378,2398.2,2397.9,1.55406]
[1751417387339,2.0975,2398.4,2398.0,0.83383]
[1751417387543,12.048,2398.6,2398.1,0.8338]
[1751417387744,0.7102,2398.7,2398.1,1.4654]
[1751417387937,0.7102,2398.7,2398.3,0.83371]
[1751417388136,0.83369,2398.5,2398.1,2.29918]
[1751417388442,0.7102,2398.7,2398.1,2.29918]
[1751417388744,0.8337,2398.4,2398.1,2.29918]
[1751417388948,2.1715,2398.7,2398.1,2.29918]
[1751417388949,0.83368,2398.5,2398.1,2.29918]
[1751417389545,0.83368,2398.5,2398.1,43.09918]
[1751417390041,0.83368,2398.5,2398.2,0.83374]
[1751417390844,0.83365,2398.6,2398.2,0.83374]
[1751417391045,0.83366,2398.5,2398.2,0.83374]
[1751417391239,0.83365,2398.6,2398.2,0.83374]
[1751417391743,0.83361,2398.7,2398.4,0.83368]
[1751417392044,12.048,2399.0,2398.5,1.55955]
[1751417392045,0.7271,2399.0,2398.5,1.55955]
[1751417392236,0.83356,2398.8,2398.5,2.88185]
[1751417392441,0.83356,2398.8,2398.5,2.0482]
[1751417392642,0.83356,2398.8,2398.5,2.88185]
[1751417393150,0.7271,2399.0,2398.5,2.0482]
[1751417393344,1.56061,2399.0,2398.6,0.8336]
[1751417393545,0.83354,2398.9,2398.6,2.8382]
[1751417393848,1.56061,2399.0,2398.6,2.83822]
[1751417394143,0.83351,2399.0,2398.6,2.0046]
[1751417394347,0.83351,2399.0,2398.6,2.8382]
[1751417394549,0.83352,2398.9,2398.6,2.0046]
[1751417395049,0.83357,2398.8,2398.6,2.0046]
[1751417395844,0.83354,2398.9,2398.6,2.8382]
[1751417396047,0.83354,2398.9,2398.7,1.4065]
[1751417396541,0.83356,2398.8,2398.7,1.4065]
[1751417396742,0.83355,2398.9,2398.7,1.4065]
[1751417397051,1.3637,2399.2,2398.7,1.4065]
[1751417397342,0.83354,2398.9,2398.7,1.4065]
[1751417398646,60.7292,2399.3,2398.7,1.4065]
[1751417398852,0.83345,2399.2,2398.8,0.83353]
[1751417399048,0.83345,2399.2,2398.9,1.4566]
[1751417399350,0.83345,2399.2,2398.9,2.29012]
[1751417399550,0.83345,2399.2,2399.0,0.7119]
[1751417399753,0.8334,2399.3,2399.0,2.1685]
[1751417400247,0.6702,2399.7,2399.1,7.43767752]
[1751417400447,0.6702,2399.7,2399.1,8.27111752]
[1751417400648,0.83334,2399.5,2399.2,1.4566]
[1751417400849,0.83335,2399.4,2399.2,1.4566]
[1751417401240,0.83338,2399.3,2399.2,1.4566]
[1751417401750,2.75339,2399.7,2399.2,1.4566]
[1751417401951,0.83338,2399.4,2399.2,1.4566]
[1751417403450,1.4183,2399.8,2399.3,0.83337]
[1751417403655,0.83324,2399.7,2399.4,1.51823]
[1751417403845,12.6941,2400.0,2399.5,0.7009]
[1751417404042,0.83326,2399.7,2399.5,0.7009]
[1751417406952,0.83328,2399.6,2399.5,0.7009]
[1751417407749,0.83335,2399.4,2399.3,40.8]
[1751417407955,0.83339,2399.3,2399.1,1.4201]
[1751417408352,0.83339,2399.3,2399.2,40.8]
[1751417408553,0.83339,2399.3,2399.1,6.89699953]
[1751417408753,0.83339,2399.3,2399.1,0.7086]
[1751417409149,0.83339,2399.3,2399.1,41.5086]
[1751417409755,0.83335,2399.4,2399.2,0.83341]
[1751417410855,0.83333,2399.5,2399.2,0.83341]
[1751417411054,2.16386,2399.7,2399.2,1.3905]
[1751417411254,1.3758,2399.9,2399.3,5.48588378]
[1751417411455,1.3758,2399.9,2399.4,2.22382]
[1751417411657,0.83325,2399.7,2399.4,2.22382]
[1751417411954,0.83325,2399.7,2399.5,0.7311]
[1751417412354,0.83328,2399.6,2399.5,0.7311]
[1751417413555,0.83327,2399.7,2399.5,0.7311]
[1751417414051,0.6916,2399.9,2399.5,0.7311]
[1751417414257,0.83328,2399.6,2399.5,0.7311]
[1751417416455,0.83346,2399.1,2398.7,12.02]
[1751417416658,2.08329,2399.5,2398.7,12.02]
[1751417416659,0.83349,2399.0,2398.8,1.49855]
[1751417416859,2.44403853,2399.2,2398.8,41.465]
[1751417417058,0.8335,2399.0,2398.8,41.465]
[1751417417258,2.44403853,2399.2,2398.8,42.29853]
[1751417417459,0.8335,2399.0,2398.8,41.465]
[1751417417670,0.8335,2399.0,2398.8,42.29855]
[1751417418760,0.83347,2399.1,2398.8,42.29855]
[1751417418963,0.83349,2399.0,2398.8,42.29855]
[1751417419167,0.83348,2399.1,2398.8,42.29855]
[1751417419367,0.8335,2399.0,2398.8,42.29855]
[1751417419658,0.8335,2399.0,2398.8,41.465]
[1751417420260,0.8335,2399.0,2398.8,42.29855]
[1751417420562,0.83352,2398.9,2398.8,41.465]
[1751417420767,0.83351,2399.0,2398.8,41.465]
[1751417421065,4.16578,2400.0,2398.8,41.465]
[1751417421066,2.08301,2399.9,2399.1,0.83344]
[1751417421260,0.83335,2399.4,2399.2,0.7284]
[1751417421562,0.83338,2399.4,2399.2,0.7284]
[1751417421758,0.83338,2399.3,2399.2,0.7284]
[1751417421965,0.83343,2399.2,2398.9,1.4465]
[1751417422260,0.83343,2399.2,2399.0,0.83349]
[1751417422461,4.16428,2400.9,2399.0,31.15930903]
[1751417422662,0.83317,2400.0,2399.8,4.69500236]
[1751417422961,0.83316,2400.0,2399.7,0.7284]
[1751417423160,0.83316,2400.0,2399.7,1.56164]
[1751417423364,0.83316,2400.0,2399.7,0.7284]